Cogmind - Beta 11 X8 @@@ ROGUE MODE // 2021.12.07 @ 23:35:01 Player: T1-4MT Result: Destroyed by D-53 Grenadier with Mini Grenade Launcher Performance ------------- Evolutions (0) 0 Regions Visited (2) 400 Robots Destroyed (5) 25 Value Destroyed (124) 124 Prototype IDs (0) 0 Alien Tech Used (0) 0 Bonus (0) 0 TOTAL SCORE: 549 Bonus ------- None Cogmind --------- Core Integrity 0/250 Matter 290/300 Energy 75/100 System Corruption 0% Temperature Cool (39) Movement Treading (240) Ox1 Location -10/Mines Parts ------- > --- POWER (1) -------- (None) > --- PROPULSION (2) --- Light Treads > --- UTILITY (2) ------ Large Storage Unit Visual Processing Unit > --- WEAPON (2) ------- Particle Gun Particle Gun > --- INVENTORY (15) --- Ion Engine Aluminum Leg Aluminum Leg Compact Wheel Compact Wheel Compact Wheel Visual Processing Unit Medium Laser Particle Gun Light Assault Rifle Peak State ------------ > --- POWER ------------ Light Ion Engine > --- PROPULSION ------- Light Treads Light Treads > --- UTILITY ---------- Large Storage Unit Visual Processing Unit > --- WEAPON ----------- Particle Gun Particle Gun > --- INVENTORY -------- Ion Engine Aluminum Leg Aluminum Leg Compact Wheel Compact Wheel Compact Wheel Visual Processing Unit Medium Laser Particle Gun Particle Gun Light Assault Rifle [Rating: 11] Favorites ----------- Power Light Ion Engine Engine Light Ion Engine Propulsion Light Treads Treads Light Treads Utility Large Storage Unit Storage Large Storage Unit Processor Visual Processing Unit Weapon Particle Gun Energy Gun Particle Gun Ballistic Gun Light Assault Rifle Build | -11 -10 -10 ------- Run | Scr Mat Min Slots Evolved . | . . . Power . | . . . Propulsion . | . . . Utility . | . . . Weapon . | . . . Parts Attached 12 | 6 5 1 Power 1 | 1 . . Engine 1 | 1 . . Core . | . . . Reactor . | . . . Propulsion 2 | 2 . . Treads 2 | 2 . . Leg . | . . . Wheel . | . . . Hover . | . . . Flight . | . . . Utility 3 | 1 2 . Device . | . . . Storage 2 | 1 1 . Processor 1 | . 1 . Hackware . | . . . Protection . | . . . Artifact . | . . . Weapon 6 | 2 3 1 Energy Gun 5 | 1 3 1 Energy Cannon . | . . . Ballistic Gun 1 | 1 . . Ballistic Cannon . | . . . Launcher . | . . . Special Weapon . | . . . Impact Weapon . | . . . Slashing Weapon . | . . . Piercing Weapon . | . . . Special Melee Weapon . | . . . Unidentified Prototypes . | . . . Parts Lost 3 | . . 3 Power 1 | . . 1 Propulsion 1 | . . 1 Utility . | . . . Weapon 1 | . . 1 Highest Loss Streak 3 | . . 3 Average Slot Usage (%) 93 | . 89 98 Engine 13 | . 14 13 Treads 28 | . 28 28 Storage 14 | . 14 14 Processor 8 | . 4 14 Energy Gun 22 | . 17 27 Ballistic Gun 5 | . 10 . Naked Turns . | . . . Heaviest Build 29 | 10 29 29 Greatest Support 40 | 40 40 40 Greatest Overweight (x) 2 | 2 . . Average Overweight (x) . | . . . Largest Inventory Capacity 15 | 8 15 15 Average Capacity 11 | 7 10 15 Most Carried 13 | 7 13 11 Average Carried 8 | 4 8 10 Final Capacity 15 | 8 15 15 Final Carried 11 | 7 11 10 Class Distribution -------------------- 100% | Mutant Dominant Class ---------------- Mutant | -10/Materials Mutant | -10/Mines Resources | -11 -10 -10 ----------- Run | Scr Mat Min Matter Collected 329 | 263 66 . Remotely . | . . . Salvage Created 248 | 97 151 . Parts 5 | 2 3 . Haulers Intercepted . | . . . Recyclers Shooed . | . . . Parts Field Recycled . | . . . Retrieved Matter . | . . . Parts Self-Destructed . | . . . Prevented . | . . . Kills | -11 -10 -10 ------- Run | Scr Mat Min Combat Hostiles Destroyed 4 | . 3 1 Guns 4 | . 3 1 Classes Destroyed 4 | 1 2 1 Recycler 1 | 1 . . Operator 1 | . 1 . Grunt 3 | . 3 . Assembled 1 | . . 1 Best Kill Streak 3 | 1 3 1 Combat Bots Only 3 | . 3 1 Max Kills in Single Turn 1 | 1 1 1 Gunslinging . | . . . Exploded . | . . . Melee . | . . . Uniques/NPCs Destroyed . | . . . Combat | -11 -10 -10 -------- Run | Scr Mat Min Damage Taken 770 | . 53 717 Core 284 | . 10 274 Absorbed by Shields . | . . . Core Remaining (%) 100 | 100 . . Volleys Fired 22 | 3 16 3 Largest 2 | 2 2 2 Hottest 130 | 60 70 130 Shots Fired 41 | 6 31 4 Gun 41 | 6 31 4 Cannon . | . . . Launcher . | . . . Special . | . . . Kinetic 19 | 3 16 . Thermal 22 | 3 15 4 Explosive . | . . . Electromagnetic . | . . . Robot Hit Streak 7 | 3 4 7 Robot Miss Streak 3 | 1 3 1 Penetration Max . | . . . Secondary Targets . | . . . Shots Hit Robots 25 | 4 18 3 Core Hits 13 | 2 9 2 Critical Kills . | . . . Critical Parts Destroyed . | . . . Critical Strikes 1 | . 1 . Burn 1 | . 1 . Melee Attacks . | . . . Impact . | . . . Slashing . | . . . Piercing . | . . . Sneak Attacks . | . . . Combat Hostiles . | . . . Follow-up Attacks . | . . . Damage Inflicted 276 | 40 187 49 Guns 276 | 40 187 49 Cannons . | . . . Explosions . | . . . Melee . | . . . Ramming . | . . . Kinetic 89 | 9 80 . Thermal 187 | 31 107 49 Explosive . | . . . Electromagnetic . | . . . Impact . | . . . Slashing . | . . . Piercing . | . . . Highest Corruption . | . . . Average Corruption . | . . . Corruption Purged . | . . . Overload Shots . | . . . Overflow Damage . | . . . Projectiles . | . . . Explosions . | . . . Melee . | . . . Knockbacks . | . . . Impact . | . . . Kinetic . | . . . Secondary . | . . . Self-Inflicted Damage . | . . . Shots . | . . . Rammed . | . . . Targets Rammed . | . . . Kicked . | . . . Crushed . | . . . Highest Temperature 90 | 10 90 39 Average Temperature 27 | 7 31 19 Received Heat Transfer 30 | . 30 . Siege Activations . | . . . Robots Corrupted . | . . . Combat Hostiles . | . . . Parts Fried . | . . . Impact Corruptions . | . . . Robots Melted . | . . . Combat Hostiles . | . . . Parts Melted 1 | . 1 . Heat Transferred 533 | 75 347 111 Parts Sabotaged . | . . . Parts Stolen . | . . . Parts Stripped . | . . . Power Chain Reactions . | . . . Missiles Intercepted . | . . . Alert | -11 -10 -10 ------- Run | Scr Mat Min Peak Influence 138 | 5 138 53 Initial 53 | . 3 53 Average 60 | 3 85 51 Maximum Alert Level . | . . . Low Security (%) 100 | 100 100 100 Level 1 . | . . . Level 2 . | . . . Level 3 . | . . . Level 4 . | . . . Level 5 . | . . . High Security . | . . . Max Security . | . . . Squads Dispatched 1 | . 1 . Investigation . | . . . Extermination . | . . . Reinforcement 1 | . 1 . Assault . | . . . Garrison . | . . . Intercept . | . . . Construction Impeded . | . . . Haulers Reinforced . | . . . Active Scanning Responses . | . . . Cargo Convoy Interrupts . | . . . Stealth | -11 -10 -10 --------- Run | Scr Mat Min Distress Signals . | . . . Communications Jammed . | . . . Distress Signals . | . . . Times Spotted 26 | . 10 16 Peak Tracking Total 12 | . 2 12 Tactical Retreats . | . . . Traps | -11 -10 -10 ------- Run | Scr Mat Min Traps Triggered . | . . . Indirectly . | . . . Trap Hack Attempts . | . . . Triggered . | . . . Disarmed . | . . . Reprogrammed . | . . . Reused . | . . . Traps Extracted . | . . . Installed . | . . . Triggered . | . . . Machines | -11 -10 -10 ---------- Run | Scr Mat Min Machines Disabled . | . . . Max in Single Turn . | . . . Machines Sabotaged . | . . . Garrisons Compromised . | . . . Overloaded Fab Kills . | . . . Hacking | -11 -10 -10 --------- Run | Scr Mat Min Machines Accessed 1 | . 1 . Terminals 1 | . 1 . Fabricators . | . . . Repair Stations . | . . . Recycling Units . | . . . Scanalyzers . | . . . Garrison Access . | . . . Total Hacks 2 | . 2 . Successful . | . . . Failed 2 | . 2 . Catastrophic . | . . . Database Lockouts . | . . . Manual 2 | . 2 . Terminals 2 | . 2 . Fabricators . | . . . Repair Stations . | . . . Recycling Units . | . . . Scanalyzers . | . . . Garrison Access . | . . . Terminal Hacks . | . . . Fabricator Hacks . | . . . Repair Station Hacks . | . . . Recycling Unit Hacks . | . . . Scanalyzer . | . . . Garrison Access Hacks . | . . . Unauthorized Hacks . | . . . Terminals . | . . . Fabricators . | . . . Repair Stations . | . . . Recycling Units . | . . . Scanalyzers . | . . . Garrison Access . | . . . Data Cores Recovered . | . . . Used . | . . . Hacking Detections 1 | . 1 . Full Trace Events . | . . . Feedback Events . | . . . Feedback Blocked . | . . . Robot Schematics Acquired . | . . . Robots Built . | . . . Authchips . | . . . Time . | . . . Total Robot Build Rating . | . . . Part Schematics Acquired . | . . . Parts Built . | . . . Authchips . | . . . Time . | . . . Total Part Build Rating . | . . . Parts Repaired . | . . . Time . | . . . Parts Recycled . | . . . Recycled Matter . | . . . Retrieved Matter . | . . . Retrieved Components . | . . . Parts Scanalyzed . | . . . Part Schematics Acquired . | . . . Parts Damaged . | . . . Bothacking | -11 -10 -10 ------------ Run | Scr Mat Min Used RIF Installer . | . . . Robots Hacked . | . . . Non-combat . | . . . Combat . | . . . Robot Hacks Applied . | . . . Relay Couplers Released . | . . . Fabnet Peak Effective % . | . . . Robots Rewired . | . . . Allies Hacked . | . . . Hacks Repelled . | . . . Allies | -11 -10 -10 -------- Run | Scr Mat Min Total Allies . | . . . Largest Group . | . . . Highest-Rated Group . | . . . Highest-Rated Ally . | . . . Total Orders . | . . . Ally Attacks . | . . . Total Damage . | . . . Kills . | . . . Allies Corrupted . | . . . Allies Melted . | . . . Intel | -11 -10 -10 ------- Run | Scr Mat Min Robot Analysis Total . | . . . Derelict Logs Recovered . | . . . Drone Launches . | . . . Drone Recoveries . | . . . Exploration | -11 -10 -10 ------------- Run | Scr Mat Min Turns Passed 756 | 115 346 295 Spaces Moved 416 | 58 179 179 Core 13 | 13 . . Treads 403 | 45 179 179 Legs . | . . . Wheels . | . . . Hover . | . . . Flight . | . . . Fastest Speed 50 | 50 160 160 Average Speed 158 | 147 160 160 Slowest Speed 160 | 160 160 160 Overloaded Moves . | . . . Propulsion Burnouts . | . . . Robots Hopped . | . . . Cave-ins Triggered . | . . . Exploration Rate (%) 21 | 5 29 31 Regions Visited 2 Branch Regions 1 Pre-discovered Areas . | . . . Known Exits Taken . | . . . Unknown Exits Taken 2 | 1 1 . Scrap Searched . | . . . Spaces Dug . | . . . Terrain Destroyed . | . . . Melee . | . . . Projectile . | . . . AOE . | . . . Terrain Rammed . | . . . Walls Destroyed . | . . . Machines Disabled . | . . . Actions | -11 -10 -10 --------- Run | Scr Mat Min Total 478 | 83 211 184 Wait 2 | . 1 1 Move 414 | 57 178 179 Hop . | . . . Pick Up 22 | 15 7 . Fast Attach 2 | . 2 . Attach 8 | 6 1 1 Detach . | . . . Swap 2 | . 2 . Drop 6 | 2 4 . Fire 22 | 3 16 3 Melee . | . . . Ram . | . . . Kick . | . . . Crush . | . . . Escape Stasis . | . . . Rewire . | . . . Trap . | . . . Miscellaneous . | . . . Route ------- -11/Scrapyard -10/Materials (discovered 3 exits: [*Mat] / [*Min x2]) -10/Mines (discovered 1 exit: [*Mat]) History --------- Turn | Location | Event 8 | -11/Scrapyard | Discovered new exit (range 16) 116 | -11/Scrapyard | Entered Materials 180 | -10/Materials | Discovered new exit (range 15) 304 | -10/Materials | Discovered new exit (range 15) 304 | -10/Materials | Discovered new exit (range 14) 314 | -10/Materials | Build established: Mutant 462 | -10/Materials | Entered Mines 470 | -10/Mines | Met a Derelict bent on vengeance 520 | -10/Mines | Discovered new exit (range 8) 711 | -10/Mines | Assembled infested the area 747 | -10/Mines | Core integrity fell below 50% 756 | -10/Mines | Core integrity fell below 20% 757 | -10/Mines | Destroyed by D-53 Grenadier with Mini Grenade Launcher Last Messages --------------- 00737_ D-53 Grenadier unfolds itself. 00737_ as-88336 destroyed. 00737_ as-41983 destroyed. 00737_ as-80409 destroyed. 00739_ Lgt. Ion Engine destroyed. 00740_ as-07637 destroyed. 00740_ as-75558 destroyed. 00740_ as-67644 destroyed. 00740_ as-37591 destroyed. 00741_ D-53 Grenadier destroyed. 00742_ as-69241 destroyed. 00743_ The unstable cave ceiling collapses. 00746_ as-87689 destroyed. 00748_ The unstable cave ceiling collapses. 00748_ U-05 Engineer builds a Wall. 00749_ Particle Gun destroyed. 00751_ Lgt. Treads destroyed. 00752_ as-61683 destroyed. 00753_ The unstable cave ceiling collapses. 00754_ U-05 Engineer builds a Wall. Map ----- +----------------------------------------------------+ | ?????????????????????????????????????????? | | ?????????????????????????????????????????? | | ?????????????????????????????????????????? | | ?????????????????????????????????????????? | | ?????????????????????????????????????????? | | ?????????????????????????????????????????? | | ?????????????????????????????????????????? | | ?????????????????????????????????????????? | | ?????????????????????????????????????????? | | ????????????????????? ???????????????????? | | ???????????????????? ???????????????????? | | ???????????????????? =???????????????????? | | ???????????????????? ????????????????????? | | ???????????????????? ????????????????????? | | ?????????????????### ????????????????????? | | ????????????????? ????#???????????????? | | ????????????????? #??? ##??????????????? | | ?????????????????# #??? ##?????????????? | | ??????????????####a ###? ##????????????? | | ?????????????## # ## #????????????? | | ?????????????? # #????????????? | | ?????????????## a a #?????????????? | | ????????????## #??????????????? | | ????????????# #????????????????? | | ????????????# ##????????????????? | | ????????????# @ ###??????????????? | | ??????####??# #??????????????? | | ?????## ##?# = #??????????????? | | ????## #?## %* ##?????????????? | | ???## #??#### d #????????####?? | | ???# #?????## #????????# ##? | | ???# ##??????## # #% #????????# #? | | ???# ###????????# # #???????## #? | | ??## ##??????????### ### #???##### #? | | ??# #####??????????### #??## #? | | ??# #???????????## #?## #? | | ??## ### #??????###### #?# """ #? | | ???###?# #?????## ##?# """ #? | | ???????# #????## ##??# """ ## | | ???????# ###??# ##???## # | | ???##### ##?# ##?????# ##### | | ??## #?# ###??????# #???## | | ??# #?## ##????????# #????## # | | ??# ##?# ######????# ####??#### | | ??## % ### ## ###### ##????? | | ???## ###??? | | ????## ! #??? | | ?????# #### ###### #??? | | ????# ##??## ##????# ##??? | | ???# * ##????# ##????## ##???? | +----------------------------------------------------+ Best States ------------- Heat Dissipation 25 Energy Generation 10 Energy Capacity 125 Matter Stores 300 Matter Capacity 300 Sight Range 18 Terrain Scan Density 10 Evasion (%) 40 Recoil Reduction 2 Item Schematics ----------------- None Robot Schematics ------------------ None Fabricated ------------ Nothing Alien Tech Used ----------------- None Achievements -------------- None Challenges ------------ None Game ------ Seed RiotBombWheel Manual? 0 Play Time 00:11:31 Cumulative 14.4 hours Start 2021.12.07 @ 23:18:46 End 2021.12.07 @ 23:35:01 Sessions 1 Manual Loads 0 Difficulty Rogue Special Mode None Game No. 5 Rogue 5 Adventurer 0 Explorer 0 Win Type - Total 0 Types 0/0/0/0/0/0/0/0/0 Lore% 26 Gallery% 21 Achievement% 22 Wizard Run 0 Options --------- ASCII 0 Keyboard 0 Movement Mouse Keybinds 0 Fullscreen 1 Font 24/Smallcaps Map View 76x50 Tactical HUD 1 Map Filters NONE Filters NONE Steam 1 RUN: a08a17b3-1311-4a88-bc53-bbe54d691826